bitfinex/quotes_SOLUSD_20250206
["timestamp","ask_amount","ask_price","bid_price","bid_amount"]
[1738803249847,19.62476893,196.85,196.8,0.03]
[1738803250261,32.5,196.83,196.8,0.03]
[1738803251240,19.62476893,196.85,196.81,15.48476893]
[1738803251241,32.5,196.85,196.81,15.48476893]
[1738803251570,15.48476893,196.84,196.8,0.03]
[1738803252360,15.48476893,196.82,196.8,0.03]
[1738803252553,32.5,196.83,196.8,0.03]
[1738803252554,15.48476893,196.81,196.8,0.03]
[1738803252858,15.48476893,196.82,196.8,0.03]
[1738803253747,47.98476893,196.83,196.8,0.03]
[1738803254564,15.48476893,196.82,196.8,0.03]
[1738803254754,15.48476893,196.81,196.8,0.03]
[1738803255848,47.98476893,196.83,196.8,0.03]
[1738803256043,32.5,196.83,196.8,0.03]
[1738803257151,19.62476893,196.84,196.8,0.03]
[1738803258462,15.48476893,196.83,196.8,0.03]
[1738803258864,19.62476893,196.84,196.8,0.03]
[1738803259869,15.48476893,196.82,196.8,0.03]
[1738803260242,15.48476893,196.81,196.8,0.03]
[1738803260468,32.5,196.94,196.83,1.12549]
[1738803260665,32.5,196.97,196.88,28.89661746]
[1738803260873,32.5,196.96,196.88,15.48476893]
[1738803261959,32.5,196.96,196.88,20.56396893]
[1738803262273,47.98476893,196.96,196.88,20.56396893]
[1738803262645,57.26403293,196.96,196.88,29.84323293]
[1738803262964,24.76403293,196.93,196.88,5.0792]
[1738803263363,32.5,196.96,196.88,44.01684203]
[1738803263547,32.5,196.97,196.89,13.41184853]
[1738803263743,32.5,196.97,196.94,24.76403293]
[1738803263948,60.36,196.98,196.95,5.0774]
[1738803264667,60.36,196.98,196.95,29.84143293]
[1738803265852,60.36,196.98,196.94,24.76403293]
[1738803266873,0.03,197.0,196.93,5.83938497]
[1738803267072,0.03,197.0,196.99,24.76403293]
[1738803267591,0.03,197.0,196.98,24.76403293]
[1738803267802,0.03,197.0,196.95,24.76403293]
[1738803267973,0.03,197.0,196.96,5.0771]
[1738803268779,0.03,197.0,196.96,29.84113293]
[1738803270775,24.76403293,196.99,196.94,5.0775]
[1738803271080,0.03,197.0,196.92,1.6236]
[1738803271081,57.26403293,196.98,196.92,1.6236]
[1738803271284,24.76403293,196.97,196.92,6.7015]
[1738803271491,57.26403293,196.98,196.92,6.7015]
[1738803272083,57.26403293,196.98,196.92,5.0779]
[1738803272788,57.26403293,196.97,196.92,5.0779]
[1738803273081,82.4,196.99,196.88,24.76403293]
[1738803273082,24.76403293,196.94,196.88,24.76403293]
[1738803273297,24.76403293,196.94,196.88,5.0791]
[1738803273587,24.76403293,196.91,196.86,5.0795]
[1738803274388,24.76403293,196.91,196.84,24.76403293]
[1738803274685,36.68,196.92,196.83,5.0802]
[1738803274686,24.76403293,196.89,196.83,5.0802]
[1738803274866,57.26403293,196.9,196.83,29.84423293]
[1738803275068,32.5,196.9,196.83,29.84423293]
[1738803275292,32.5,196.9,196.84,24.76403293]
[1738803275678,32.5,196.9,196.85,5.08]
[1738803275872,32.5,196.9,196.85,29.84403293]
[1738803276072,32.5,196.9,196.86,24.76403293]
[1738803277493,32.5,196.9,196.84,24.76403293]
[1738803278271,32.5,196.9,196.85,24.76403293]
[1738803278676,32.5,196.9,196.84,24.76403293]
[1738803279571,32.5,196.9,196.85,29.84403293]
[1738803279772,32.5,196.9,196.85,5.08]
[1738803280011,32.5,196.89,196.84,24.76403293]
[1738803280181,32.5,196.89,196.81,13.4641949]
[1738803280182,0.25098,196.88,196.82,24.76403293]
[1738803280377,24.76403293,196.87,196.81,5.081]
[1738803280686,32.5,196.86,196.82,24.76403293]
[1738803280892,32.5,196.86,196.84,0.063]
[1738803281876,32.5,196.9,196.85,24.76403293]
[1738803282192,32.5,196.91,196.88,24.76403293]
[1738803282400,32.5,196.91,196.87,24.76403293]
[1738803283191,36.64,196.93,196.9,24.76403293]
[1738803283395,32.5,196.96,196.92,24.76403293]
[1738803283573,0.03,196.97,196.93,24.76403293]
[1738803283893,0.03,196.97,196.88,7.41590304]
[1738803283894,0.03,196.97,196.91,24.76403293]
[1738803284079,0.03,196.97,196.88,6.6543]
[1738803284080,24.79403293,196.97,196.9,24.76403293]
[1738803284687,15.50626055,196.97,196.9,15.47626055]
[1738803285495,15.50626055,196.97,196.9,20.55486055]
[1738803286600,15.47626055,196.96,196.89,20.55516055]
[1738803286786,32.5,196.95,196.89,20.55516055]
[1738803289297,32.5,196.95,196.9,15.47626055]
[1738803289482,32.5,196.95,196.9,20.55476055]
[1738803289677,32.5,196.96,196.9,20.55476055]
[1738803289874,32.5,196.96,196.91,15.47626055]
[1738803290602,32.5,196.96,196.92,15.47626055]
[1738803290821,32.5,196.96,196.94,15.47626055]
[1738803291097,32.5,196.96,196.91,5.0784]
[1738803291098,0.03,196.97,196.95,15.47626055]
[1738803291287,0.03,196.97,196.96,15.47626055]
[1738803292904,0.03,196.97,196.96,20.55336055]
[1738803293686,0.03,196.97,196.96,33.96520908]
[1738803294483,0.03,196.97,196.96,34.72649643]
[1738803295708,0.03,196.97,196.96,33.96520908]
[1738803300032,0.03,196.97,196.96,20.55336055]
[1738803302211,0.03,196.97,196.96,33.96520908]
[1738803302408,0.03,197.08,197.0,20.0]
[1738803302607,0.03,197.08,197.06,15.47626055]
[1738803303208,0.03,197.08,197.07,15.47626055]
[1738803303414,0.03,197.08,197.06,15.47626055]
[1738803303722,0.03,197.08,197.02,15.47626055]
[1738803304134,0.03,197.08,197.03,5.0753]
[1738803304933,0.03,197.08,197.03,20.55156055]
[1738803305107,0.03,197.08,197.03,15.47626055]
[1738803306005,32.5,197.07,197.01,15.47626055]
[1738803306398,32.5,197.07,197.03,15.47626055]
[1738803307337,32.5,197.07,197.02,15.47626055]
[1738803307906,32.5,197.07,197.03,20.55156055]
[1738803309320,32.5,197.07,197.0,20.55236055]
[1738803309719,37.5743,197.07,197.0,20.55236055]
[1738803310021,32.5,197.07,197.01,15.47626055]
[1738803310230,32.5,197.07,197.02,15.47626055]
[1738803310607,32.5,197.07,197.01,15.47626055]
[1738803310826,37.5744,197.07,197.01,15.47626055]
[1738803312026,32.5,197.07,197.01,15.47626055]
[1738803312421,32.5,197.07,197.02,15.47626055]
[1738803312724,32.5,197.07,197.03,15.47626055]
[1738803313645,32.53,197.08,197.01,15.47626055]
[1738803313947,48.00626055,197.08,197.01,15.47626055]
[1738803315140,48.00626055,197.08,197.01,20.55196055]
[1738803316414,32.53,197.08,197.02,15.47626055]
[1738803316808,0.03,197.07,197.02,15.47626055]
[1738803317414,0.03,197.07,197.06,15.47626055]
[1738803318449,0.03,197.07,197.06,33.96260908]
[1738803318740,0.03,197.1,197.09,33.41184853]
[1738803318972,0.03,197.1,197.09,65.1251088]
[1738803319154,0.03,197.17,197.16,15.47626055]
[1738803320358,0.03,197.2,197.18,1.0]
[1738803320570,0.063,197.27,197.23,15.47626055]
[1738803320719,0.063,197.27,197.26,15.47626055]
[1738803321445,0.063,197.27,197.24,0.76024761]
[1738803321446,0.063,197.27,197.25,15.47626055]
[1738803321851,0.063,197.27,197.23,15.47626055]
[1738803322054,0.063,197.27,197.24,15.47626055]
[1738803322426,0.063,197.27,197.25,15.47626055]
[1738803322667,0.063,197.27,197.26,15.47626055]
[1738803324762,0.063,197.27,197.26,20.54566055]
[1738803324932,0.063,197.27,197.26,34.71770084]
[1738803326467,0.03,197.28,197.27,13.41184853]
[1738803326664,0.03,197.28,197.27,28.88810908]
[1738803328175,0.063,197.31,197.28,5.0689]
[1738803328378,0.063,197.31,197.29,45.24983735]
[1738803328575,0.063,197.35,197.33,15.47626055]
[1738803328866,0.063,197.35,197.32,20.0]
[1738803329043,0.063,197.35,197.31,35.47626055]
[1738803329236,0.063,197.35,197.32,15.47626055]
[1738803330466,0.063,197.35,197.33,5.0676]
[1738803330667,8.0955,197.34,197.29,5.0684]
[1738803330836,15.47626055,197.31,197.24,15.47626055]
[1738803331738,15.47626055,197.32,197.25,15.47626055]
[1738803331938,15.47626055,197.32,197.26,5.0694]
[1738803332136,32.5,197.31,197.22,20.54646055]
[1738803332367,15.47626055,197.27,197.2,15.47626055]
[1738803332672,15.47626055,197.27,197.19,15.47626055]
[1738803332874,15.47626055,197.27,197.2,15.47626055]
[1738803333040,15.47626055,197.26,197.18,20.54776055]
[1738803333372,15.47626055,197.24,197.18,5.0715]
[1738803333562,47.97626055,197.25,197.18,5.0715]
[1738803333759,47.97626055,197.23,197.16,5.0719]
[1738803334077,52.11626055,197.23,197.16,20.54816055]
[1738803334246,36.64,197.23,197.17,15.47626055]
[1738803334448,52.11626055,197.23,197.16,5.0719]
[1738803334657,15.47626055,197.21,197.14,33.96040908]
[1738803334862,15.47626055,197.2,197.14,5.0723]
[1738803335036,9.2102,197.23,197.14,20.54856055]
[1738803335037,15.47626055,197.21,197.14,20.54856055]
[1738803335240,9.2102,197.23,197.16,15.47626055]
[1738803335241,19.61626055,197.23,197.16,15.47626055]
[1738803335660,19.61626055,197.23,197.15,15.47626055]
[1738803335867,15.47626055,197.22,197.15,15.47626055]
[1738803336181,15.47626055,197.22,197.15,20.54826055]
[1738803337179,15.47626055,197.21,197.15,5.072]
[1738803337469,15.47626055,197.21,197.13,15.47626055]
[1738803337685,15.47626055,197.21,197.13,20.54886055]
[1738803337880,15.47626055,197.2,197.13,5.0726]
[1738803338444,15.47626055,197.2,197.12,15.47626055]
[1738803338647,32.5,197.19,197.13,15.47626055]
[1738803339002,15.47626055,197.31,197.18,1.12549]
[1738803339178,32.5,197.31,197.26,15.47626055]
[1738803339679,15.47626055,197.28,197.2,15.47626055]
[1738803339862,47.97626055,197.28,197.2,15.47626055]
[1738803340058,36.66,197.28,197.22,15.47626055]
[1738803340966,36.66,197.28,197.22,20.54656055]
[1738803341485,52.13626055,197.28,197.22,15.47626055]
[1738803342649,61.34261122,197.28,197.21,29.75331122]
[1738803343085,24.68261122,197.27,197.19,43.22845975]
[1738803343297,24.68261122,197.22,197.19,0.063]
[1738803343451,32.75098,197.26,197.19,0.063]
[1738803343452,24.68261122,197.2,197.19,0.063]
[1738803344788,32.5,197.21,197.19,0.063]
[1738803346090,31.29721122,197.23,197.19,0.063]
[1738803347069,6.6146,197.23,197.19,0.063]
[1738803349385,31.29721122,197.23,197.19,0.063]
[1738803351711,36.36741122,197.23,197.19,0.063]
[1738803352079,32.5,197.22,197.19,0.063]
[1738803352903,36.64,197.22,197.19,0.063]
[1738803354399,32.5,197.22,197.2,24.68261122]
[1738803354780,32.5,197.22,197.19,24.74561122]
[1738803355480,32.5,197.22,197.19,0.063]
[1738803355881,57.18261122,197.22,197.19,0.063]
[1738803356078,32.5,197.22,197.19,0.063]
[1738803356311,112.15251122,197.24,197.19,0.063]
[1738803356312,107.08261122,197.24,197.19,0.063]
[1738803356609,82.4,197.24,197.2,24.68261122]
[1738803356988,82.4,197.24,197.19,0.063]
[1738803356989,82.4,197.24,197.21,24.68261122]
[1738803357189,4.14,197.26,197.21,24.68261122]
[1738803357379,4.14,197.27,197.22,24.68261122]
[1738803357583,36.64,197.28,197.22,24.68261122]
[1738803357982,61.32261122,197.28,197.21,24.68261122]
[1738803358211,61.32261122,197.28,197.2,24.68261122]
[1738803358387,66.39161122,197.28,197.2,29.75351122]
[1738803358584,24.68261122,197.25,197.19,0.063]
[1738803358786,24.68261122,197.24,197.19,0.063]
[1738803359182,57.18261122,197.23,197.19,0.063]
[1738803359403,24.68261122,197.22,197.19,0.063]
[1738803359608,57.18261122,197.22,197.19,0.063]
[1738803360283,57.18261122,197.21,197.19,0.063]
[1738803360489,24.68261122,197.2,197.19,0.063]
[1738803360895,57.18261122,197.21,197.19,0.063]
[1738803361914,32.5,197.21,197.19,0.063]
[1738803362287,32.5,197.23,197.19,0.063]
[1738803362485,36.64,197.23,197.19,0.063]
[1738803363090,57.14301443,197.23,197.19,0.063]
[1738803364419,52.07281443,197.23,197.19,0.063]
[1738803364625,32.5,197.24,197.19,15.49581443]
[1738803364926,32.5,197.25,197.22,15.43281443]
[1738803365416,4.14,197.26,197.22,15.43281443]
[1738803366403,19.57281443,197.29,197.22,20.50301443]
[1738803366798,32.5,197.3,197.22,20.50301443]
[1738803367002,36.64,197.29,197.24,15.43281443]
[1738803367218,32.5,197.3,197.26,15.43281443]
[1738803367508,32.5,197.29,197.26,15.43281443]
[1738803367911,4.17,197.31,197.26,15.43281443]
[1738803367912,0.03,197.31,197.26,15.43281443]
[1738803368525,0.03,197.31,197.27,5.0691]
[1738803368727,0.03,197.31,197.25,20.50221443]
[1738803369706,0.03,197.31,197.26,15.43281443]
[1738803369895,0.03,197.31,197.27,15.43281443]
[1738803370322,0.03,197.31,197.29,28.84466296]
[1738803370511,0.03,197.31,197.3,5.0684]
[1738803370825,0.03,197.31,197.28,5.0687]
[1738803370996,0.03,197.31,197.27,15.43281443]
[1738803371307,0.03,197.31,197.27,20.50181443]
[1738803372126,0.03,197.31,197.26,15.43281443]
[1738803372425,32.5,197.3,197.25,20.50231443]
[1738803372627,15.43281443,197.29,197.23,18.48174853]
[1738803372831,47.93281443,197.29,197.23,5.0699]
[1738803373028,32.5,197.29,197.23,5.0699]
[1738803373206,32.5,197.29,197.23,20.50271443]
[1738803373816,47.93281443,197.28,197.21,20.50331443]
[1738803374018,15.43281443,197.29,197.21,20.50331443]
[1738803374739,15.43281443,197.28,197.21,5.0705]
[1738803375718,32.5,197.3,197.24,15.43281443]
[1738803376749,32.5,197.3,197.25,5.0697]
[1738803377040,32.5,197.3,197.26,15.43281443]
[1738803377232,32.5,197.3,197.27,15.43281443]
[1738803377426,32.5,197.3,197.26,15.43281443]
[1738803378346,32.5,197.3,197.27,15.43281443]
[1738803378513,32.5,197.3,197.26,15.43281443]
[1738803378837,32.5,197.3,197.27,5.0691]
[1738803379834,32.5,197.3,197.23,12.6755]
[1738803379835,32.5,197.3,197.23,15.43281443]
[1738803380016,47.93281443,197.3,197.23,20.50301443]
[1738803380415,15.43281443,197.29,197.23,5.0702]
[1738803380833,47.93281443,197.28,197.22,5.0704]
[1738803381943,47.93281443,197.28,197.21,20.50351443]
[1738803382145,114.9,197.27,197.21,20.50351443]
[1738803382745,114.9,197.27,197.22,15.43281443]
[1738803383116,114.9,197.27,197.21,15.43281443]
[1738803383815,114.9,197.27,197.23,15.43281443]
[1738803384735,82.4,197.27,197.23,15.43281443]
[1738803384939,82.4,197.27,197.2,20.50371443]
[1738803385215,82.4,197.27,197.21,15.43281443]
[1738803386015,82.4,197.27,197.2,20.50371443]
[1738803386447,97.83281443,197.27,197.2,20.50371443]
[1738803386943,82.4,197.27,197.21,15.43281443]
[1738803387248,82.4,197.27,197.23,0.063]
[1738803390757,32.5,197.26,197.23,0.063]
[1738803391652,114.9,197.25,197.23,0.063]
[1738803391857,47.93281443,197.24,197.23,0.063]
[1738803392026,15.43281443,197.24,197.23,0.063]
[1738803392228,15.43281443,197.25,197.23,0.063]
[1738803392634,15.43281443,197.26,197.23,0.063]
[1738803393135,15.43281443,197.25,197.23,0.063]
[1738803394726,47.93281443,197.24,197.23,0.063]
[1738803395871,77.93281443,197.24,197.23,0.063]
[1738803396037,47.93281443,197.24,197.23,0.063]
[1738803396668,20.87918443,197.24,197.23,0.063]
[1738803397944,50.87918443,197.24,197.23,0.063]
[1738803398261,50.75369443,197.24,197.23,0.063]
[1738803398858,20.75369443,197.24,197.23,0.063]
[1738803399052,50.75369443,197.24,197.23,0.063]
[1738803399256,50.87918443,197.24,197.23,0.063]
[1738803399467,51.87918443,197.24,197.23,0.063]
[1738803399847,50.87918443,197.24,197.23,0.063]
[1738803400772,52.17516595,197.24,197.23,0.063]
[1738803401075,52.17516595,197.24,197.19,0.063]
[1738803401076,0.37647,197.2,197.19,0.063]
[1738803401372,20.88018443,197.2,197.19,0.063]
[1738803402372,50.88018443,197.2,197.19,0.063]
[1738803402975,66.31299886,197.2,197.19,0.063]
[1738803403472,50.88018443,197.2,197.19,0.063]
[1738803404163,66.31299886,197.2,197.19,0.063]
[1738803404553,50.88018443,197.2,197.19,0.063]
[1738803406862,45.43281443,197.2,197.19,0.063]
[1738803407066,30.0,197.2,197.19,0.063]
[1738803407455,30.0,197.2,197.19,15.49581443]
[1738803407856,30.0,197.2,197.19,0.063]
[1738803408059,4.14,197.23,197.19,0.063]
[1738803408464,19.57281443,197.23,197.19,0.063]
[1738803408775,15.43281443,197.22,197.19,0.063]
[1738803411479,114.9,197.21,197.19,0.063]
[1738803412070,130.33281443,197.21,197.19,0.063]
[1738803412877,114.9,197.21,197.19,0.063]
[1738803415088,130.58379443,197.2,197.19,0.063]
[1738803415255,130.70928443,197.2,197.19,0.063]
[1738803415456,160.70928443,197.2,197.19,0.063]
[1738803416393,165.78018443,197.2,197.19,0.063]
[1738803419662,160.33281443,197.2,197.19,0.063]
[1738803419855,164.47281443,197.2,197.19,0.063]
[1738803420384,49.57281443,197.2,197.19,0.063]
[1738803420882,45.43281443,197.2,197.19,0.063]
[1738803421090,32.5,197.21,197.19,0.063]
[1738803421294,32.5,197.21,197.19,15.49581443]
[1738803421995,32.5,197.21,197.2,15.43281443]
[1738803422679,32.5,197.21,197.2,20.50371443]
[1738803423664,0.03,197.23,197.2,20.50371443]
[1738803424186,0.03,197.23,197.21,15.43281443]
[1738803424392,0.03,197.23,197.22,15.43281443]
[1738803424693,0.03,197.23,197.22,20.50321443]
[1738803425907,0.0001,197.23,197.22,34.04055296]
[1738803429016,0.0001,197.23,197.22,34.29153296]
[1738803429191,0.0001,197.23,197.22,41.93363296]
[1738803429781,0.0001,197.23,197.22,42.93363296]
[1738803429994,0.0001,197.23,197.22,44.51453296]
[1738803431289,0.0001,197.23,197.22,42.51453296]
[1738803432011,0.0001,197.23,197.22,42.38904296]
[1738803432591,0.0001,197.23,197.22,42.13806296]
[1738803432908,0.0001,197.23,197.22,35.49596296]
[1738803433315,0.0001,197.23,197.22,6.6513]
[1738803433512,0.0001,197.23,197.22,5.0704]
[1738803433996,0.0001,197.23,197.22,20.50321443]
[1738803435309,0.0001,197.23,197.22,34.04055296]
[1738803435718,0.0001,197.23,197.22,33.91506296]
[1738803436717,0.0001,197.23,197.22,34.04055296]
[1738803437819,32.5,197.3,197.25,20.0]
[1738803437981,32.5,197.3,197.26,15.43281443]
[1738803438613,32.5,197.34,197.3,13.41184853]
[1738803438913,114.9,197.4,197.34,13.41184853]
[1738803439091,0.063,197.41,197.37,15.43281443]
[1738803439292,0.063,197.41,197.36,15.43281443]
[1738803439501,15.49581443,197.41,197.34,15.43281443]
[1738803439712,15.43281443,197.39,197.32,15.43281443]
[1738803439912,15.43281443,197.38,197.33,5.0676]
[1738803440091,32.5,197.37,197.31,5.0679]
[1738803440286,32.5,197.36,197.31,5.0679]
[1738803440615,32.5,197.35,197.31,5.0679]
[1738803441000,32.5,197.35,197.31,20.50071443]
[1738803441195,32.5,197.35,197.33,15.43281443]
[1738803441399,32.5,197.35,197.34,15.43281443]
[1738803442913,32.5,197.35,197.34,20.50011443]
[1738803444143,32.5,197.39,197.34,20.50011443]
[1738803444516,15.43281443,197.38,197.32,5.0676]
[1738803444721,32.5,197.39,197.29,35.43281443]
[1738803444722,15.43281443,197.37,197.29,35.43281443]
[1738803445010,47.93281443,197.39,197.32,15.43281443]
[1738803445220,32.5,197.39,197.33,15.43281443]
[1738803445396,32.53,197.39,197.33,15.43281443]
[1738803447116,32.53,197.39,197.34,5.0673]
[1738803447796,47.96281443,197.39,197.34,5.0673]
[1738803448320,32.53,197.39,197.33,15.43281443]
[1738803448994,47.96281443,197.39,197.32,15.43281443]
[1738803449320,32.53,197.39,197.33,15.43281443]
[1738803450018,114.9,197.38,197.33,15.43281443]
[1738803451220,114.9,197.38,197.34,5.0673]
[1738803454325,114.9,197.38,197.34,20.50011443]
[1738803454517,0.03,197.39,197.37,15.43281443]
[1738803455403,0.03,197.39,197.38,15.43281443]
[1738803455603,0.03,197.39,197.38,28.84466296]
[1738803455804,0.063,197.41,197.38,28.97015296]
[1738803456004,0.063,197.41,197.4,28.84466296]
[1738803456517,0.063,197.41,197.4,33.91046296]
[1738803457708,0.063,197.41,197.4,34.03595296]
[1738803459027,0.03,197.43,197.42,0.12549]
[1738803459240,0.03,197.43,197.42,29.72965355]
[1738803459407,0.063,197.44,197.43,13.53733853]
[1738803459734,0.063,197.44,197.43,28.97015296]
[1738803460233,0.063,197.44,197.43,28.84466296]
[1738803460436,0.063,197.44,197.42,15.43281443]
[1738803460733,0.063,197.44,197.41,28.84466296]
[1738803460931,0.063,197.44,197.4,17.7304]
[1738803460932,32.5,197.43,197.35,8.0644]
[1738803461116,32.5,197.42,197.37,5.0666]
[1738803461319,47.93281443,197.42,197.37,5.0666]
[1738803461525,32.5,197.41,197.37,5.0666]
[1738803462102,47.93281443,197.41,197.37,5.0666]
[1738803462337,32.5,197.4,197.35,5.0669]
[1738803462539,47.93281443,197.39,197.34,0.063]
[1738803462710,47.93281443,197.38,197.34,0.063]
[1738803462915,32.5,197.38,197.34,5.1303]
[1738803463325,32.5,197.38,197.34,0.063]
[1738803467747,32.5,197.37,197.34,0.063]
[1738803468945,32.53,197.38,197.34,0.063]
[1738803473933,32.5,197.37,197.34,0.063]
[1738803479048,32.5,197.37,197.34,15.49581443]
[1738803479255,32.5,197.37,197.35,15.43281443]
[1738803479841,0.03,197.38,197.35,15.43281443]
[1738803480552,0.03,197.38,197.36,5.0668]
[1738803481359,0.03,197.38,197.34,15.49581443]
[1738803481679,0.03,197.38,197.35,5.0671]
[1738803482059,15.46281443,197.38,197.34,5.1303]
[1738803483360,15.46281443,197.38,197.34,0.063]
[1738803485260,0.03,197.38,197.34,0.063]
[1738803485863,32.5,197.37,197.34,0.063]
[1738803486362,47.93281443,197.37,197.34,0.063]
[1738803486550,15.43281443,197.35,197.34,0.063]
[1738803487053,47.93281443,197.36,197.34,0.063]
[1738803487262,32.5,197.36,197.34,0.063]
[1738803491865,32.5,197.37,197.34,0.063]
[1738803493757,42.36142437,197.37,197.34,0.063]
[1738803493948,32.5,197.37,197.34,0.063]
[1738803497253,0.03,197.38,197.37,33.41184853]
[1738803497451,0.03,197.38,197.37,43.2732729]
[1738803497665,32.53,197.43,197.37,43.2732729]
[1738803497866,0.03,197.43,197.41,9.86142437]
[1738803498365,0.03,197.43,197.4,9.86142437]
[1738803498672,9.89142437,197.43,197.35,11.44722437]
[1738803498970,9.86142437,197.41,197.34,14.99172437]
[1738803499181,9.86142437,197.41,197.34,5.1303]
[1738803501580,42.36142437,197.42,197.35,9.86142437]
[1738803502786,47.90468236,197.42,197.35,15.40468236]
[1738803503482,0.03,197.41,197.35,15.40468236]
[1738803503686,114.93,197.41,197.35,15.40468236]
[1738803503982,114.93,197.41,197.36,5.0668]
[1738803504876,130.33468236,197.41,197.35,15.40468236]
[1738803505067,130.33468236,197.41,197.35,5.0671]
[1738803505481,32.5,197.4,197.35,5.0671]
[1738803505783,15.40468236,197.39,197.34,0.063]
[1738803506084,32.5,197.38,197.34,0.063]
[1738803507487,4.12,197.37,197.34,0.063]
[1738803508887,15.40468236,197.35,197.34,0.063]
[1738803509290,82.4,197.36,197.34,0.063]
[1738803511871,97.80468236,197.36,197.34,0.063]
[1738803512574,32.5,197.35,197.34,0.063]
[1738803518404,82.4,197.36,197.34,0.063]
[1738803520607,15.40468236,197.35,197.34,0.063]
[1738803520902,97.80468236,197.36,197.34,0.063]
[1738803521715,82.4,197.36,197.34,0.063]
[1738803523110,82.4,197.36,197.34,5.1303]
[1738803525207,32.5,197.37,197.34,5.1303]
[1738803525389,32.5,197.37,197.35,9.86065879]
[1738803525589,0.03,197.38,197.35,9.86065879]
[1738803526092,0.03,197.38,197.36,9.86065879]
[1738803526811,0.03,197.38,197.37,5.0666]
[1738803528513,0.03,197.38,197.37,14.92725879]
[1738803531217,0.03,197.38,197.37,28.33910732]
[1738803536692,11.53385879,197.38,197.35,0.75988457]
[1738803536894,9.86065879,197.36,197.34,0.063]
[1738803537728,1.6732,197.38,197.34,0.063]
[1738803537729,32.5,197.35,197.34,5.1303]
[1738803538724,32.5,197.35,197.34,0.063]
[1738803542131,32.5,197.37,197.34,0.063]
[1738803548120,19.55885749,197.38,197.34,0.063]
[1738803548508,15.40885749,197.36,197.34,0.063]
[1738803548917,15.40885749,197.35,197.34,0.063]
[1738803549205,45.40885749,197.35,197.34,0.063]
[1738803552216,30.0,197.35,197.34,0.063]
[1738803553644,15.40885749,197.36,197.34,0.063]
[1738803554047,114.9,197.35,197.34,0.063]
[1738803554855,130.30885749,197.35,197.34,0.063]
[1738803555744,114.9,197.35,197.34,0.063]
[1738803556043,32.53,197.38,197.34,15.47185749]
[1738803556219,32.53,197.38,197.36,15.40885749]
[1738803556622,32.53,197.38,197.34,15.47185749]
[1738803556850,32.53,197.38,197.34,0.063]
[1738803557146,15.40885749,197.37,197.34,0.063]
[1738803557313,47.93885749,197.38,197.34,0.063]
[1738803558030,32.53,197.38,197.34,0.063]
[1738803558230,32.53,197.38,197.34,15.47185749]
[1738803558826,32.53,197.38,197.34,0.063]
[1738803560040,32.53,197.38,197.34,5.1303]
[1738803560342,47.93885749,197.38,197.34,5.1303]
[1738803560558,15.40885749,197.37,197.34,0.063]
[1738803560871,9.86425981,197.35,197.34,0.063]
[1738803563461,44.93135981,197.35,197.34,0.063]
[1738803564289,39.86425981,197.35,197.34,0.063]
[1738803564457,44.93135981,197.35,197.34,0.063]
[1738803564661,45.05684981,197.35,197.34,0.063]
[1738803565849,53.07094981,197.35,197.34,0.063]
[1738803567738,53.32192981,197.35,197.34,0.063]
[1738803567937,23.32192981,197.35,197.34,0.063]
[1738803569150,54.32192981,197.35,197.34,0.063]
[1738803569350,67.73377834,197.35,197.34,0.063]
[1738803569966,37.73377834,197.35,197.34,0.063]
[1738803570369,36.73377834,197.35,197.34,0.063]
[1738803571045,37.73377834,197.35,197.34,0.063]
[1738803571245,67.73377834,197.35,197.34,0.063]